[Event "POR-chT 1st Divison 2018"]
[Site "Maia"]
[Date "2018.07.17"]
[Round "2"]
[White "Cavaleiro, Daniel Filipe Costa"]
[Black "Reis, Luis Sousa"]
[Result "0-1"]
[ECO "D02"]
[WhiteElo "1987"]
[BlackElo "2150"]
[Annotator "NA"]
[PlyCount "104"]
[EventDate "2018.07.16"]
[EventType "team-tourn"]
[EventCountry "POR"]
[SourceTitle "playchess.com"]
[Source "ChessBase"]
[SourceQuality "1"]
[TimeControl "5400+30"]

1. d4 {[%emt 0:03:02]} d5 {[%emt 0:00:00]} 2. Nf3 {[%emt 0:00:10]} c5 {[%emt 0:05:17]} 3. e3 {[%emt 0:05:51]} Nf6 {[%emt 0:04:33]} 4. Be2 {[%emt 0:03:51]} Nc6 {[%emt 0:01:14]} 5. O-O {[%emt 0:00:34]} Bg4 {[%emt 0:07:20]} 6. c3 {[%emt 0:14:19]} e6 $11 {[%emt 0:04:43]} 7. Nbd2 {[%emt 0:04:37]} Qc7 {[%emt 0:09:11]} 8. b3 {[%emt 0:05:47]} cxd4 {[%emt 0:04:03]} 9. exd4 {[%emt 0:00:29]} Bd6 {[%emt 0:02:33]} 10. Bb2 {[%emt 0:00:43]} O-O {[%emt 0:02:36]} 11. Re1 {[%emt 0:12:02]} Rab8 {[%emt 0:11:42]} 12. a4 {[%emt 0:11:12]} a6 {[%emt 0:03:05]} 13. Nf1 {[%emt 0:03:31]} Ne4 {[%emt 0:04:51]} 14. N3d2 {[%emt 0:02:58]} Bf5 {[%emt 0:06:55]} 15. Nxe4 {[%emt 0:10:24]} Bxe4 {[%emt 0:00:12]} 16. b4 {[%emt 0:04:05]} a5 {[%emt 0:06:42]} 17. b5 {[%emt 0:00:56]} Ne7 {[%emt 0:00:28]} 18. Bd3 {[%emt 0:03:38]} Bxd3 {[%emt 0:02:07]} 19. Qxd3 {[%emt 0:00:02]} Nc8 {[%emt 0:07:49]} 20. g3 {[%emt 0:01:01]} Nb6 {[%emt 0:00:35]} 21. Ne3 {[%emt 0:00:37]} Rbc8 {[%emt 0:02:32]} 22. Kg2 {[%emt 0:03:04]} Rfd8 {[%emt 0:01:44]} 23. f4 {[%emt 0:00:14]} Nc4 {[%emt 0:02:23]} 24. Nxc4 {[%emt 0:02:06]} Qxc4 {[%emt 0:00:16]} 25. Qxc4 {[%emt 0:00:11]} Rxc4 {[%emt 0:00:12]} 26. Kf3 {[%emt 0:00:43]} Rdc8 {[%emt 0:00:54]} 27. Re3 {[%emt 0:00:24]} g6 {[%emt 0:01:11]} 28. h3 {[%emt 0:01:07]} h5 {[%emt 0:00:17]} 29. g4 {[%emt 0:04:04]} hxg4+ {[%emt 0:00:48]} 30. hxg4 {[%emt 0:00:02]} Kg7 {[%emt 0:02:58]} 31. f5 {[%emt 0:02:39]} exf5 {[%emt 0:01:11]} 32. gxf5 {[%emt 0:00:02]} gxf5 {[%emt 0:02:29]} 33. Ke2 {[%emt 0:00:35]} Kf6 {[%emt 0:02:06]} 34. Kd3 {[%emt 0:00:13]} Rg8 {[%emt 0:00:07]} 35. Rh1 {[%emt 0:00:35]} f4 {[%emt 0:01:26]} 36. Rh6+ {[%emt 0:01:03]} Rg6 {[%emt 0:00:10]} 37. Reh3 {[%emt 0:00:24]} Rxa4 {[%emt 0:00:32]} 38. R3h5 {[%emt 0:01:00]} Rxh6 {[%emt 0:00:42]} 39. Rxh6+ {[%emt 0:00:04]} Ke7 {[%emt 0:00:09]} 40. Bc1 {[%emt 0:00:15]} Ra2 {[%emt 0:00:41]} 41. Rh4 {[%emt 0:00:41]} Rf2 {[%emt 0:00:54]} 42. Rh5 {[%emt 0:00:48]} Ke6 {[%emt 0:00:21]} 43. Rh6+ {[%emt 0:00:21]} f6 {[%emt 0:00:36]} 44. Rh7 {[%emt 0:00:08]} Be7 {[%emt 0:00:18]} 45. Rh4 {[%emt 0:00:14]} a4 {[%emt 0:00:26]} 46. Bxf4 {[%emt 0:00:18]} a3 {[%emt 0:00:18]} 47. Be3 {[%emt 0:00:17]} Rb2 {[%emt 0:00:30]} 48. Rh1 {[%emt 0:00:15]} Rxb5 {[%emt 0:00:06]} 49. Ra1 {[%emt 0:00:32]} Ra5 {[%emt 0:01:06]} 50. c4 {[%emt 0:00:28]} dxc4+ {[%emt 0:00:31]} 51. Kxc4 {[%emt 0:00:02]} b5+ {[%emt 0:00:24]} 52. Kb3 {[%emt 0:00:17]} Kd5 {[%emt 0:00:36]} 0-1

[Event "POR-chT 1st Divison 2018"]
[Site "Maia"]
[Date "2018.07.17"]
[Round "3"]
[White "Carneiro, Carlos"]
[Black "Gomes, Rui Pedro De Sousa"]
[Result "1-0"]
[ECO "D37"]
[WhiteElo "2094"]
[BlackElo "1750"]
[Annotator "NA RC"]
[PlyCount "79"]
[EventDate "2018.07.16"]
[EventType "team-tourn"]
[EventCountry "POR"]
[SourceTitle "playchess.com"]
[Source "ChessBase"]
[SourceQuality "1"]
[TimeControl "5400+30"]

1. d4 {[%emt 0:03:01]} d5 {[%emt 0:00:00]} 2. Nf3 {[%emt 0:00:15]} Nf6 {[%emt 0:00:00]} 3. c4 {[%emt 0:00:10]} e6 {[%emt 0:00:00]} 4. Nc3 {[%emt 0:00:11]} a6 {[%emt 0:00:00]} 5. cxd5 {[%emt 0:01:32]} exd5 {[%emt 0:00:03]} 6. Bg5 {[%emt 0:00:23] D37: Queen's Gambit Declined: 5 Bf4} Be6 {[%emt 0:00:06]} 7. e3 {[%emt 0:02:31]} Nbd7 {[%emt 0:02:39]} 8. Be2 {[%emt 0:01:27]} (8. Bd3 Bd6 9. O-O O-O 10. Rc1 c6 11. Bf4 Bxf4 12. exf4 Bg4 13. Be2 Bxf3 14. Bxf3 {1-0 (122) Nakamura,H (2769)-Caruana,F (2816) Paris 2018}) 8... Bd6 {[%emt 0:00:12]} 9. O-O {[%emt 0:00:26]} O-O {[%emt 0:00:18]} 10. Rc1 {[%emt 0:00:21]} c6 {[%emt 0:00:57]} 11. Na4 $146 {[%emt 0:04:56]} ({Predecessor:} 11. Bh4 Re8 12. Qb3 Rb8 13. Qc2 Qc7 {0-1 (74) Renman,N (2350)-Adams,M (2709) Caleta 2018}) 11... Qc7 {[%emt 0:07:31]} 12. Bh4 {[%emt 0:07:45]} Bf5 {[%emt 0:03:06]} 13. Bg3 {[%emt 0:00:23]} Ne4 {[%emt 0:08:45]} 14. Nc5 {[%emt 0:04:39]} Bxg3 {[%emt 0:15:15]} 15. hxg3 {[%emt 0:01:18]} Ndxc5 {[%emt 0:02:34]} 16. dxc5 {[%emt 0:00:06]} Qe7 {[%emt 0:00:36]} 17. Nd4 {[%emt 0:12:15]} Bg6 {[%emt 0:01:44]} 18. b4 {[%emt 0:00:46]} Rfe8 {[%emt 0:03:20]} 19. Bf3 {[%emt 0:04:17]} Qg5 {[%emt 0:05:59]} 20. a4 {[%emt 0:06:47]} h5 {[%emt 0:18:05]} 21. Qe2 {[%emt 0:06:08]} h4 {[%emt 0:03:09]} 22. gxh4 {[%emt 0:00:46]} Qxh4 {[%emt 0:00:48]} 23. Bxe4 {[%emt 0:10:24]} Qxe4 {[%emt 0:00:42]} 24. Qf3 {[%emt 0:01:01]} Qh4 {[%emt 0:01:35]} 25. Rc3 {[%emt 0:04:08]} Re5 {[%emt 0:04:10]} 26. Qh3 {[%emt 0:03:07]} Qe7 {[%emt 0:01:41]} 27. f4 {[%emt 0:02:13]} Rh5 {[%emt 0:03:55]} 28. Qg4 {[%emt 0:01:42]} Rh4 {[%emt 0:02:24]} 29. Qg3 {[%emt 0:00:29]} Be4 {[%emt 0:01:18]} 30. f5 {[%emt 0:00:49]} Qf6 {[%emt 0:00:40]} 31. Rf4 {[%emt 0:00:49]} Rh5 {[%emt 0:01:06]} 32. Rc1 {[%emt 0:00:35]} Rg5 {[%emt 0:01:51]} 33. Rg4 {[%emt 0:00:08]} Rxg4 {[%emt 0:00:20]} 34. Qxg4 {[%emt 0:00:06]} Re8 {[%emt 0:00:53]} 35. Rf1 {[%emt 0:02:28]} Bd3 {[%emt 0:02:15]} 36. Rf3 {[%emt 0:00:17]} Re4 {[%emt 0:01:01]} 37. Qg3 {[%emt 0:00:09]} Qh6 {[%emt 0:00:52]} 38. f6 {[%emt 0:01:46]} g6 {[%emt 0:01:43]} (38... Rh4 $11 39. Qxg7+ Qxg7 40. fxg7 Rh6) 39. Nf5 {[%emt 0:01:27]} Qh5 {[%emt 0:01:13]} 40. Qb8+ {[%emt 0:00:18]} 1-0

[Event "POR-chT 1st Divison 2018"]
[Site "Maia"]
[Date "2018.07.18"]
[Round "4"]
[White "Iruzubieta Villaluenga, Jesus"]
[Black "Pereira, Ruben"]
[Result "0-1"]
[ECO "B90"]
[WhiteElo "2439"]
[BlackElo "2420"]
[Annotator "NA"]
[PlyCount "84"]
[EventDate "2018.07.16"]
[EventType "team-tourn"]
[EventCountry "POR"]
[SourceTitle "playchess.com"]
[Source "ChessBase"]
[SourceQuality "1"]
[TimeControl "5400+30"]

1. e4 c5 2. Nf3 d6 3. d4 cxd4 4. Nxd4 Nf6 5. Nc3 a6 6. h3 e5 7. Nde2 b5 8. g4 {B90: Sizilianisch (Najdorf-Variante, Abweichungen)} (8. Ng3 Qc7 9. Bd3 g6 10. O-O Bg7 11. Bd2 O-O 12. a4 b4 13. Na2 a5 14. c3 bxc3 15. Nxc3 Be6 {½-½ (40) Svidler,P (2760)-Khismatullin,D (2632) Sochi 2018}) 8... h6 9. Bg2 Nbd7 10. O-O Bb7 11. f4 Be7 12. Ng3 g6 13. Qe2 $146 ({Vorgänger:} 13. Be3 exf4 14. Bxf4 Ne5 15. a4 {0-1 (48) Ganguly,S (2614)-Berg,E (2606) Gibraltar 2009}) 13... Qc7 14. Be3 Nb6 15. fxe5 dxe5 16. Rad1 Nc4 17. Bc1 Rd8 18. Rxd8+ Qxd8 19. Kh2 h5 20. g5 $11 Nd7 21. h4 Nc5 22. Nd5 Ne6 23. Nxe7 Qxe7 24. b3 Na5 25. Rf6 Nc6 26. c3 b4 27. cxb4 Qxb4 28. Qf2 O-O 29. Bf1 Ncd4 30. Bc4 Qe7 31. Be3 Bc8 32. Ne2 Nxe2 33. Qxe2 Kh7 34. Qf2 Kg7 35. Bxe6 fxe6 36. Rxf8 Qxf8 37. Qb2 Qd6 38. Bf4 Kh7 39. Bxe5 Qd3 40. Qf2 Kg8 41. Qf6 Qe2+ 42. Kg3 Qe3+ 0-1

[Event "POR-chT 1st Divison 2018"]
[Site "Maia"]
[Date "2018.07.18"]
[Round "4"]
[White "Vassallo Barroche, Mauricio"]
[Black "Novais, Carlos Joao Fernand"]
[Result "1-0"]
[ECO "D61"]
[WhiteElo "2386"]
[BlackElo "2121"]
[Annotator "NA"]
[PlyCount "59"]
[EventDate "2018.07.16"]
[EventType "team-tourn"]
[EventCountry "POR"]
[SourceTitle "playchess.com"]
[Source "ChessBase"]
[SourceQuality "1"]
[TimeControl "5400+30"]

1. d4 {[%emt 0:00:19]} d5 {[%emt 0:00:57]} 2. c4 {[%emt 0:02:42]} e6 {[%emt 0:02:37]} 3. Nc3 {[%emt 0:00:46]} Nf6 {[%emt 0:02:17]} 4. Bg5 {[%emt 0:00:34]} Be7 {[%emt 0:02:38]} 5. e3 {[%emt 0:01:23]} Nbd7 {[%emt 0:09:41]} 6. Nf3 {[%emt 0:01:57]} O-O {[%emt 0:00:23]} 7. Qc2 {[%emt 0:01:42]} Re8 {[%emt 0:06:33]} 8. Rd1 {[%emt 0:01:22]} c6 {[%emt 0:03:23]} 9. a3 {[%emt 0:02:01]} dxc4 {[%emt 0:04:24]} 10. Bxc4 {[%emt 0:02:48]} h6 {[%emt 0:00:53]} 11. Bh4 {[%emt 0:03:41]} b5 {[%emt 0:02:06] D61: Damengambit (Hauptvariante mit 7.Dc2)} 12. Ba2 {[%emt 0:00:29]} Qb6 {[%emt 0:02:53]} 13. O-O $146 {[%emt 0:11:35]} ({Vorgänger:} 13. b4 a5 14. Qb2 axb4 15. axb4 Nf8 16. O-O Nd5 17. Bxe7 Rxe7 18. Bb1 Rea7 19. Rc1 {1-0 (39) Fatalibekova,E (2285)-Kozlovskaya,V (2281) Moscow 2011}) 13... Bb7 {[%emt 0:04:34]} 14. Bb1 {[%emt 0:09:17]} Nf8 {[%emt 0:02:49]} 15. Bxf6 {[%emt 0:00:11]} Bxf6 {[%emt 0:03:24]} 16. Ne4 {[%emt 0:00:08]} Be7 {[%emt 0:00:05]} 17. Nc5 {[%emt 0:02:05]} Bxc5 {[%emt 0:00:14]} 18. dxc5 {[%emt 0:00:06]} Qc7 {[%emt 0:00:33]} 19. Rd6 {[%emt 0:00:07]} e5 {[%emt 0:02:01]} 20. Qe4 {[%emt 0:04:54]} Qe7 {[%emt 0:00:36]} 21. Rfd1 {[%emt 0:02:43]} g6 {[%emt 0:02:30]} 22. Ba2 {[%emt 0:04:26]} Kg7 {[%emt 0:04:25]} 23. h4 {[%emt 0:00:37]} Rac8 {[%emt 0:03:37]} 24. h5 {[%emt 0:03:24]} Rc7 {[%emt 0:00:14]} 25. hxg6 {[%emt 0:00:38]} fxg6 {[%emt 0:00:07]} 26. Nh4 {[%emt 0:00:53]} Qg5 {[%emt 0:00:15]} 27. Bb1 {[%emt 0:03:03]} Re6 {[%emt 0:00:20]} 28. Rxe6 {[%emt 0:02:09]} Nxe6 {[%emt 0:00:21]} 29. Rd6 {[%emt 0:00:06]} Bc8 $18 {[%emt 0:02:24]} 30. b4 {[%emt 0:00:14]} 1-0

[Event "POR-chT 1st Divison 2018"]
[Site "Maia"]
[Date "2018.07.18"]
[Round "4"]
[White "Alshameary Puente, Ismael"]
[Black "Lombaers, Peter"]
[Result "0-1"]
[ECO "E54"]
[WhiteElo "2352"]
[BlackElo "2361"]
[Annotator "NA"]
[PlyCount "92"]
[EventDate "2018.07.16"]
[EventType "team-tourn"]
[EventCountry "POR"]
[SourceTitle "playchess.com"]
[Source "ChessBase"]
[SourceQuality "1"]
[TimeControl "5400+30"]

1. d4 {[%emt 0:00:00]} Nf6 {[%emt 0:00:00]} 2. c4 {[%emt 0:00:00]} e6 {[%emt 0:00:00]} 3. Nc3 {[%emt 0:00:00]} Bb4 {[%emt 0:00:00]} 4. e3 {[%emt 0:00:00]} O-O {[%emt 0:00:00]} 5. Bd3 {[%emt 0:00:00]} c5 {[%emt 0:00:00]} 6. Nf3 {[%emt 0:00:19]} d5 {[%emt 0:00:05]} 7. O-O {[%emt 0:02:39]} dxc4 {[%emt 0:00:08]} 8. Bxc4 {[%emt 0:00:05]} cxd4 {[%emt 0:00:05]} 9. exd4 {[%emt 0:00:08]} b6 {[%emt 0:00:07]} 10. Bg5 {[%emt 0:00:36]} Bb7 {[%emt 0:00:06]} 11. Qe2 {[%emt 0:00:20]} Bxc3 {[%emt 0:00:09]} 12. bxc3 {[%emt 0:00:04]} Nbd7 {[%emt 0:00:06]} 13. Ne5 {[%emt 0:04:48]} Rc8 {[%emt 0:00:11] E54: Nimzoindisch (Moderne Variante)} 14. Bb3 {[%emt 0:01:58]} Rxc3 {[%emt 0:05:45]} 15. Rac1 {[%emt 0:00:10]} Rxc1 {[%emt 0:50:29]} 16. Rxc1 {[%emt 0:00:25] [#]} Bd5 $146 {[%emt 0:00:54]} ({Vorgänger:} 16... Nxe5 17. dxe5 h6 18. Rd1 Qc7 19. Bxf6 gxf6 20. exf6 Qf4 21. Rd7 Ba8 22. h3 a5 23. Bxe6 fxe6 24. Qxe6+ Kh8 25. Qe7 Qc1+ {½-½ (25) Tomashevsky,E (2696)-Nakamura,H (2786) Moscow 2017}) 17. Ba4 {[%emt 0:05:11]} Nxe5 {[%emt 0:07:40]} 18. dxe5 {[%emt 0:00:20]} h6 {[%emt 0:00:05]} 19. Bh4 {[%emt 0:00:32]} Qb8 {[%emt 0:00:19]} 20. Bc2 $17 {[%emt 0:51:13]} (20. Bxf6 $15 gxf6 21. Qg4+ Kh8 22. Qh4 Qxe5 23. Qxh6+ Kg8 24. Bc2) 20... Nd7 {[%emt 0:05:04]} 21. Qd3 {[%emt 0:02:01]} g6 {[%emt 0:00:10]} 22. Bg3 {[%emt 0:04:00]} Rc8 {[%emt 0:06:26]} 23. Qe3 {[%emt 0:01:52]} Rc5 {[%emt 0:05:26]} 24. Bb1 {[%emt 0:07:45]} Qc8 {[%emt 0:04:40]} 25. Rd1 {[%emt 0:00:33]} Kh7 {[%emt 0:02:41]} 26. h4 {[%emt 0:03:30]} Qd8 {[%emt 0:04:40]} 27. f3 {[%emt 0:07:39]} Kg7 {[%emt 0:00:20]} 28. Qa3 {[%emt 0:00:45]} h5 {[%emt 0:01:45]} 29. Bf2 {[%emt 0:00:18]} Rc8 {[%emt 0:00:59]} 30. Qb4 {[%emt 0:01:55]} Rc4 {[%emt 0:01:20]} 31. Qd2 {[%emt 0:02:28]} Nxe5 {[%emt 0:01:52]} 32. Bd4 {[%emt 0:01:04]} f6 {[%emt 0:00:07]} 33. Bb2 {[%emt 0:02:38]} Qc7 {[%emt 0:00:49]} 34. Qf2 {[%emt 0:00:35]} Nf7 {[%emt 0:02:50]} 35. Bd3 {[%emt 0:00:19]} Ra4 {[%emt 0:00:13]} 36. a3 {[%emt 0:01:06]} Qf4 {[%emt 0:00:17]} 37. Bb5 {[%emt 0:00:34]} Ra5 {[%emt 0:00:28]} 38. Rd4 {[%emt 0:00:18]} Qc7 {[%emt 0:00:22]} 39. Bd3 {[%emt 0:00:18]} e5 {[%emt 0:01:05]} 40. Qg3 {[%emt 0:00:34]} Qc5 {[%emt 0:00:07]} 41. Qxg6+ {[%emt 0:00:57]} Kf8 {[%emt 0:00:06]} 42. Qxf6 {[%emt 0:00:31]} exd4 {[%emt 0:00:46]} 43. Bxd4 {[%emt 0:00:10]} Qc1+ {[%emt 0:00:36]} 44. Kh2 {[%emt 0:00:05]} Qh6 {[%emt 0:00:10]} 45. Qf5 {[%emt 0:00:43]} Qd6+ {[%emt 0:00:33]} 46. Kh1 {[%emt 0:00:52]} Bb7 {[%emt 0:00:21]} 0-1

[Event "POR-chT 1st Divison 2018"]
[Site "Maia"]
[Date "2018.07.18"]
[Round "4"]
[White "Reis, Luis Sousa"]
[Black "Turcer, Dusan"]
[Result "1-0"]
[ECO "B23"]
[WhiteElo "2150"]
[BlackElo "2039"]
[Annotator "NA"]
[PlyCount "124"]
[EventDate "2018.07.16"]
[EventType "team-tourn"]
[EventCountry "POR"]
[SourceTitle "playchess.com"]
[Source "ChessBase"]
[SourceQuality "1"]
[TimeControl "5400+30"]

1. e4 {[%emt 0:00:07]} c5 {[%emt 0:00:59]} 2. Nc3 {[%emt 0:01:32]} Nc6 {[%emt 0:00:16]} 3. f4 {[%emt 0:01:23]} g6 {[%emt 0:00:20]} 4. Nf3 {[%emt 0:00:44]} Bg7 {[%emt 0:00:12]} 5. Bb5 {[%emt 0:03:09]} d6 {[%emt 0:01:07]} 6. Bxc6+ {[%emt 0:03:08]} bxc6 {[%emt 0:00:03]} 7. O-O {[%emt 0:01:59]} Nf6 {[%emt 0:00:45]} 8. d3 {[%emt 0:01:39]} Bg4 {[%emt 0:03:34]} 9. Qe1 {[%emt 0:05:46]} Bxf3 {[%emt 0:00:22]} 10. Rxf3 {[%emt 0:01:06]} Nd7 {[%emt 0:00:00]} 11. b3 {[%emt 0:25:22]} Rb8 {[%emt 0:01:30]} 12. Bb2 {[%emt 0:04:00]} Qa5 {[%emt 0:00:18]} 13. e5 {[%emt 0:05:47]} dxe5 {[%emt 0:26:56]} 14. Na4 {[%emt 0:06:20]} Qc7 {[%emt 0:11:24]} 15. Re3 {[%emt 0:01:42]} f6 {[%emt 0:12:30]} 16. fxe5 {[%emt 0:02:06]} fxe5 {[%emt 0:00:02]} 17. Rf3 {[%emt 0:04:53]} Bf6 {[%emt 0:01:06]} 18. Bc3 {[%emt 0:04:54]} O-O {[%emt 0:02:59]} 19. Qe4 {[%emt 0:01:28]} Qd6 {[%emt 0:03:34]} 20. Re1 {[%emt 0:01:20]} Rb4 {[%emt 0:01:42]} 21. Bxb4 {[%emt 0:01:47]} cxb4 {[%emt 0:00:11]} 22. Kh1 {[%emt 0:00:59]} Kg7 {[%emt 0:00:08]} 23. Nb2 {[%emt 0:00:52]} Nb6 {[%emt 0:00:50]} 24. Nc4 {[%emt 0:00:40]} Nxc4 {[%emt 0:00:08]} 25. Qxc4 {[%emt 0:00:35]} a5 {[%emt 0:01:19]} 26. Qa6 {[%emt 0:07:10]} Qc5 {[%emt 0:00:36]} 27. Qc4 {[%emt 0:00:23]} Qd5 {[%emt 0:03:14]} 28. Rfe3 {[%emt 0:01:10]} Rd8 {[%emt 0:00:51]} 29. Re4 {[%emt 0:01:42]} Rd7 {[%emt 0:03:47]} 30. h3 {[%emt 0:02:45]} Rb7 {[%emt 0:00:50]} 31. Qa6 {[%emt 0:04:24]} Qb5 {[%emt 0:00:37]} 32. Qxb5 {[%emt 0:00:20]} cxb5 {[%emt 0:00:16]} 33. Kg1 {[%emt 0:01:55]} Rc7 {[%emt 0:00:17]} 34. R1e2 {[%emt 0:00:09]} Rc5 {[%emt 0:00:12]} 35. Kf1 {[%emt 0:00:14]} h5 {[%emt 0:02:52]} 36. g3 {[%emt 0:00:41]} Kf7 {[%emt 0:02:05]} 37. Ke1 {[%emt 0:00:07]} Kg7 {[%emt 0:01:39]} 38. Kd1 {[%emt 0:00:05]} Kf7 {[%emt 0:00:41]} 39. h4 {[%emt 0:00:23]} Kg7 {[%emt 0:00:27]} 40. Rh2 {[%emt 0:00:53]} Kf7 {[%emt 0:06:08]} 41. g4 {[%emt 0:00:27]} hxg4 {[%emt 0:02:08]} 42. Rxg4 {[%emt 0:00:06]} Rc8 {[%emt 0:01:32]} 43. Rhg2 {[%emt 0:01:20]} Rh8 {[%emt 0:00:16]} 44. Rxg6 {[%emt 0:00:50]} Rxh4 {[%emt 0:02:03]} 45. Rg8 {[%emt 0:02:07]} e4 {[%emt 0:00:24]} 46. R8g4 {[%emt 0:01:30]} exd3 {[%emt 0:00:27]} 47. Rxh4 {[%emt 0:00:12]} dxc2+ {[%emt 0:00:06]} 48. Rxc2 {[%emt 0:00:11]} Bxh4 {[%emt 0:00:05]} 49. Rc5 {[%emt 0:00:15]} e6 {[%emt 0:05:46]} 50. Rxb5 {[%emt 0:00:07]} Bd8 {[%emt 0:00:03]} 51. Rb8 {[%emt 0:00:28]} Ke7 {[%emt 0:00:14]} 52. Ke2 {[%emt 0:00:21]} Bc7 {[%emt 0:00:08]} 53. Ra8 {[%emt 0:00:39]} Kd6 {[%emt 0:00:10]} 54. Kd3 {[%emt 0:00:12]} Ke5 {[%emt 0:00:40]} 55. Rc8 {[%emt 0:00:19]} Bb6 {[%emt 0:00:44]} 56. Kc4 {[%emt 0:01:26]} Kd6 {[%emt 0:00:23]} 57. Kb5 {[%emt 0:00:25]} Bc7 {[%emt 0:00:24]} 58. Rxc7 {[%emt 0:00:36]} Kxc7 {[%emt 0:00:05]} 59. Kxa5 {[%emt 0:00:09]} Kc6 {[%emt 0:00:07]} 60. Kxb4 {[%emt 0:00:06]} Kd5 {[%emt 0:00:06]} 61. Kc3 {[%emt 0:00:20]} Ke4 {[%emt 0:00:01]} 62. a4 {[%emt 0:01:01]} Kd5 1-0

[Event "POR-chT 1st Divison 2018"]
[Site "Maia"]
[Date "2018.07.18"]
[Round "4"]
[White "Eggert, Alberto"]
[Black "Marchena Hurtado, Javier"]
[Result "0-1"]
[ECO "C77"]
[WhiteElo "2142"]
[BlackElo "2354"]
[Annotator "NA"]
[PlyCount "104"]
[EventDate "2018.07.16"]
[EventType "team-tourn"]
[EventCountry "POR"]
[SourceTitle "playchess.com"]
[Source "ChessBase"]
[SourceQuality "1"]
[TimeControl "5400+30"]

1. e4 {[%emt 0:00:13]} e5 {[%emt 0:00:09]} 2. Nf3 {[%emt 0:01:02]} Nc6 {[%emt 0:01:43]} 3. Bb5 {[%emt 0:00:25]} a6 {[%emt 0:00:04]} 4. Ba4 {[%emt 0:00:29]} Nf6 {[%emt 0:00:04]} 5. d3 {[%emt 0:00:20]} b5 {[%emt 0:00:23]} 6. Bb3 {[%emt 0:00:12]} Be7 {[%emt 0:00:27]} 7. O-O {[%emt 0:02:24]} O-O {[%emt 0:00:17]} 8. a4 {[%emt 0:06:04]} b4 {[%emt 0:02:36]} 9. a5 {[%emt 0:03:13] C84: Closed Ruy Lopez: Unusual White 6th moves} d6 {[%emt 0:01:50]} 10. h3 {[%emt 0:05:21]} (10. Be3 h6 11. Nbd2 Re8 12. c3 Bf8 13. h3 Rb8 14. Re1 bxc3 15. bxc3 d5 16. Qc2 Be6 {0-1 (50) Grischuk,A (2772)-Ding,L (2777) Riadh 2017}) 10... Be6 {[%emt 0:03:07]} 11. c3 $146 {[%emt 0:06:10]} ({Predecessor:} 11. Bxe6 fxe6 12. Be3 Qe8 13. c3 bxc3 14. bxc3 Nd8 15. Nbd2 Nh5 16. d4 exd4 17. cxd4 {½-½ (37) Heimann,A (2574)-Sinz,B (2386) Karlsruhe 2018}) 11... Rb8 {[%emt 0:10:51]} 12. Bc4 {[%emt 0:36:07]} Bxc4 {[%emt 0:12:00]} 13. dxc4 {[%emt 0:00:09]} Qd7 {[%emt 0:02:12]} 14. Re1 {[%emt 0:03:13]} Qe6 {[%emt 0:02:47]} 15. Qd3 {[%emt 0:03:29]} h6 {[%emt 0:06:02]} 16. Nbd2 {[%emt 0:01:52]} bxc3 {[%emt 0:10:38]} 17. bxc3 {[%emt 0:02:11]} Nd7 {[%emt 0:01:37]} 18. Qd5 {[%emt 0:02:26]} Nd8 {[%emt 0:01:17]} 19. Ba3 $15 {[%emt 0:00:41]} c6 {[%emt 0:07:16]} 20. Qd3 {[%emt 0:02:12]} Nb7 {[%emt 0:02:00]} 21. Red1 {[%emt 0:03:06]} Nbc5 {[%emt 0:01:25]} 22. Qc2 {[%emt 0:01:19]} Rb7 {[%emt 0:05:13]} 23. Bb4 {[%emt 0:02:43]} g6 {[%emt 0:05:38]} 24. Re1 {[%emt 0:03:46]} Kg7 {[%emt 0:00:34]} 25. Rab1 {[%emt 0:00:40]} Rfb8 {[%emt 0:00:21]} 26. Rbd1 {[%emt 0:03:29]} Kg8 {[%emt 0:04:23]} 27. Re3 {[%emt 0:00:19]} Bd8 {[%emt 0:01:28]} 28. Nf1 {[%emt 0:02:20]} Bc7 {[%emt 0:04:28]} 29. Qe2 {[%emt 0:00:58]} Nb3 {[%emt 0:02:39]} 30. Qa2 {[%emt 0:01:49]} c5 {[%emt 0:03:57]} 31. Qxb3 {[%emt 0:00:16]} cxb4 {[%emt 0:00:19]} 32. Qa4 {[%emt 0:01:22]} Nc5 {[%emt 0:00:56]} 33. Qc6 {[%emt 0:00:42]} b3 {[%emt 0:00:20]} 34. N1d2 {[%emt 0:01:47]} b2 {[%emt 0:00:37]} 35. Ree1 {[%emt 0:00:22]} Bxa5 {[%emt 0:00:42]} 36. Nb1 {[%emt 0:00:19]} Rb6 {[%emt 0:04:53]} 37. Qd5 {[%emt 0:00:18]} Qxd5 {[%emt 0:00:54]} 38. Rxd5 {[%emt 0:00:05]} Rc6 {[%emt 0:00:38]} 39. Red1 {[%emt 0:00:58]} Bc7 {[%emt 0:00:14]} 40. Nfd2 {[%emt 0:00:27]} a5 {[%emt 0:00:23]} 41. f3 {[%emt 0:00:21]} a4 {[%emt 0:00:15]} 42. Na3 {[%emt 0:00:12]} Kf8 {[%emt 0:02:29]} 43. Ndb1 {[%emt 0:00:34]} Ke7 {[%emt 0:00:49]} 44. Nb5 {[%emt 0:00:12]} Nb3 {[%emt 0:00:33]} 45. Nxc7 {[%emt 0:04:56]} Rxc7 {[%emt 0:00:04]} 46. Rxd6 {[%emt 0:00:04]} Rxc4 {[%emt 0:00:34]} 47. Rd7+ {[%emt 0:00:22]} Kf8 {[%emt 0:00:49]} 48. Ra7 {[%emt 0:00:43]} Nc5 {[%emt 0:00:22]} 49. Rd5 {[%emt 0:00:18]} Rb3 {[%emt 0:00:40]} 50. Rd8+ {[%emt 0:01:00]} Kg7 {[%emt 0:00:04]} 51. Rd2 {[%emt 0:00:37]} a3 {[%emt 0:00:48]} 52. Rc2 {[%emt 0:00:50]} Ra4 {[%emt 0:00:32]} 0-1